[Event "European Women-ch 2023"]
[Site "Petrovac"]
[Date "2023.03.23"]
[Round "6.28"]
[White "Antolak, Julia"]
[Black "Makropoulou, Marina"]
[Result "1-0"]
[ECO "B62"]
[WhiteElo "2276"]
[BlackElo "2102"]
[Annotator "TA"]
[PlyCount "123"]
[EventDate "2023.03.15"]
[EventType "swiss"]
[EventCountry "MNE"]
[SourceTitle "playchess.com"]
[Source "ChessBase"]
[SourceQuality "1"]
[TimeControl "40/5400+30:1800+30"]

{[%evp 13,123,16,40,30,33,39,55,0,0,0,0,-9,0,0,0,0,0,9,18,12,14,0,0,-10,-1,-30,-30,-110,-118,-111,-110,-128,-27,-66,-66,-74,-22,-22,0,-14,0,0,0,-39,-44,-67,-75,-68,-78,-98,-125,-110,-107,-117,-109,-124,-99,-97,-120,-125,-117,-110,-73,-87,-69,-287,-30,-25,0,-15,-17,-27,0,0,0,0,127,118,223,222,512,321,2861,963,12825,12826,12830,12831,12836,12836,12837,12835,12814,12804,12793,12796,12792,12798,12841,12822,1295,378,12837,12837,12837,12838,12838,12839,12839,12839,12840,12840]} 1. e4 {[%emt 0:00:03]} c5 {[%emt 0:00:24]} 2. Nf3 {[%emt 0:00:15]} d6 {[%emt 0:00:37]} 3. d4 {[%emt 0:00:30]} cxd4 {[%emt 0:00:06]} 4. Nxd4 {[%emt 0:00:05]} Nf6 {[%emt 0:00:05]} 5. Nc3 {[%emt 0:00:06]} Nc6 {[%emt 0:00:34]} 6. Bg5 {[%emt 0:00:41]} e6 {[%emt 0:01:32]} 7. Qd3 {[%emt 0:02:53]} a6 {[%emt 0:03:32]} 8. Nxc6 $1 {[%emt 0:03:48][%mdl 4] outshines the older 8.0-0-0. B62: Sicilian: Richter-Rauzer: 6...e6: Unusual White 7th moves.} bxc6 {[%emt 0:00:08]} 9. O-O-O {[%emt 0:00:37][%cal Oe4e5] aiming for e5!} Qa5 {[%emt 0:05:10]} 10. f4 {[%emt 0:07:21]} (10. Qg3 $14) 10... Rb8 $11 {[%emt 0:09:28]} 11. Be2 {[%emt 0:15:00]} d5 {[%emt 0:04:55] [#]} 12. Bf3 $146 {[%emt 0:07:09]} ({Predecessor:} 12. f5 Bb4 13. Bxf6 gxf6 14. fxe6 fxe6 15. Bh5+ Ke7 16. Qg3 Bxc3 17. bxc3 Bd7 18. Qg7+ {1-0 Nikitenko,M (2506)-Lutsko,I (2311) BLR-ch 88th Minsk 2022 (6)}) 12... Bb4 {[%emt 0:08:38]} (12... Be7 {looks sharper.} 13. a3 h6 14. Bh4 Nxe4 15. Bxe7 Nxc3 16. Bd6 Nxd1 17. Bxb8 Qb6) 13. a3 {[%emt 0:05:22] And now Bxf6 would win.} Bxc3 {[%emt 0:08:54]} 14. Qxc3 {[%emt 0:00:07]} Qxc3 {[%emt 0:00:08]} 15. bxc3 {[%emt 0:00:04]} Bb7 {[%emt 0:14:01]} 16. e5 {[%emt 0:09:02]} Nd7 {[%emt 0:00:24] Black is weak on the dark squares} 17. Bh4 {[%emt 0:00:06]} a5 {[%emt 0:00:56]} 18. Kd2 {[%emt 0:04:27]} Ba6 {[%emt 0:01:19]} 19. Rb1 {[%emt 0:03:09]} Nb6 {[%emt 0:05:53]} 20. Be2 {[%emt 0:02:18]} (20. Ra1 $11) 20... Bxe2 $17 {[%emt 0:00:11]} 21. Kxe2 {[%emt 0:00:14]} Kd7 {[%emt 0:00:25]} 22. Bf2 {[%emt 0:02:43]} Nc4 {[%emt 0:00:40]} ({Black should play} 22... Na4 $1 $17 {[%cal Ra4c3]} 23. Kd2 Nb2) 23. Ba7 {[%emt 0:05:15]} Rxb1 {[%emt 0:03:59]} 24. Rxb1 $15 {[%emt 0:00:06][%mdl 4096] Endgame KRB-KRN} Rc8 {[%emt 0:00:11]} (24... Kc7 $1 $17 25. a4 h5) 25. Bc5 $11 {[%emt 0:03:10]} Rc7 {[%emt 0:04:38]} 26. h4 {[%emt 0:05:25]} h5 {[%emt 0:00:22]} 27. a4 {[%emt 0:02:12]} Kc8 {[%emt 0:01:42]} 28. g4 {[%emt 0:07:48]} hxg4 {[%emt 0:01:16]} 29. Rg1 {[%emt 0:00:07]} g6 $1 {[%emt 0:01:40][%cal Bg7g6,Bg6h5][%mdl 32]} 30. Rxg4 {[%emt 0:00:07]} Nb2 {[%emt 0:00:36]} 31. h5 {[%emt 0:08:00]} gxh5 {[%emt 0:00:38]} (31... Nxa4 $2 32. h6 Kb7 33. Bf8 Nxc3+ 34. Kd3 $18) 32. Rg8+ {[%emt 0:00:22]} Kb7 $1 {[%emt 0:04:26]} 33. Bd6 {[%emt 0:00:06]} Rc8 {[%emt 0:00:28]} 34. Rg7 {[%emt 0:00:20]} Nxa4 {[%emt 0:00:22]} 35. Rxf7+ {[%emt 0:00:24]} Kb6 {[%emt 0:00:43]} 36. c4 {[%emt 0:01:30]} dxc4 {[%emt 0:01:54]} 37. Kd2 {[%emt 0:01:42] Prevents Nc3.} Rg8 {[%emt 0:03:37] Hoping for ...h4.} 38. f5 {[%emt 0:01:45] [#]} exf5 {[%emt 0:00:24]} 39. e6 $2 {[%emt 0:00:27] [#]} (39. Rxf5 $15 h4 40. Rh5) 39... Nc5 $2 {[%emt 0:08:46]} (39... Rd8 $1 $19 {[%cal Rd8d6]} 40. Rd7 Re8) 40. Bc7+ {[%emt 0:00:00]} Kb5 {[%emt 0:00:00]} 41. e7 {[%emt 0:06:10]} (41. Rxf5 $5 Re8 $8 42. Bd6 $11) 41... Re8 {[%emt 0:02:34]} 42. Kc3 {[%emt 0:10:58]} h4 {[%emt 0:05:20]} (42... Ne6 {feels hotter.} 43. Rxf5+ c5 44. Bd6 Kc6) 43. Rxf5 {[%emt 0:02:49] Bd6 is the strong threat.} Rxe7 {[%emt 0:00:06]} 44. Bd6 {[%emt 0:00:13][%csl LRc5,LRe7]} Re3+ {[%emt 0:01:24]} (44... Rd7 $11 {keeps the balance.} 45. Rxc5+ (45. Bxc5 $2 {too greedy.} Rd5 $19) 45... Kb6) 45. Kd2 $16 {[%emt 0:01:09]} Re4 {[%emt 0:07:53]} (45... Rf3 $16 46. Rxc5+ (46. Rxf3 Ne4+ 47. Kc1 Nxd6 $11) 46... Kb6) 46. Bxc5 $18 {[%emt 0:00:49] KRB-KR} ({Stronger than} 46. Rxc5+ Kb6 47. Bf8 Rf4 $11) 46... Ka6 $2 {[%emt 0:00:24]} (46... Rg4 47. Be7+ Ka4) 47. Kc3 {[%emt 0:01:16] Bd4 would be deadly.} Rg4 {[%emt 0:01:50]} (47... Kb7 48. Rh5 a4) 48. Rh5 {[%emt 0:01:04] Black must now prevent Be7.} Rf4 {[%emt 0:01:47]} 49. Be7 {[%emt 0:04:30]} Rf3+ {[%emt 0:00:05]} 50. Kxc4 {[%emt 0:00:07]} h3 {[%emt 0:00:02]} 51. Bc5 {[%emt 0:01:33]} Kb7 {[%emt 0:01:05]} 52. Rh7+ {[%emt 0:00:19]} Kc8 {[%emt 0:00:01]} 53. Bd6 {[%emt 0:00:33]} a4 {[%emt 0:00:33]} 54. c3 {[%emt 0:00:41]} Kd8 {[%emt 0:00:26]} 55. Ra7 {[%emt 0:02:19]} Rf1 {[%emt 0:05:09]} 56. Rxa4 {[%emt 0:01:33]} Kd7 {[%emt 0:00:10]} 57. Bb8 $2 {[%emt 0:00:39]} (57. Bg3 {Strongly threatening Ra7+.} Rg1 58. Bf4 (58. Ra7+ Ke6 $16)) 57... Rh1 $2 {[%emt 0:03:58]} (57... Kc8) 58. Ra7+ {[%emt 0:00:19] White is clearly winning.} Ke6 {[%emt 0:00:48]} 59. Rh7 {[%emt 0:00:12]} Kf5 {[%emt 0:00:25]} 60. Kc5 {[%emt 0:00:47]} Kg4 {[%emt 0:00:01]} 61. Kxc6 {[%emt 0:01:14]} Rc1 {[%emt 0:02:01]} 62. Be5 {[%emt 0:00:12] What a bad dream for Black.   Weighted Error Value: White=0.41/Black=0.38} 1-0